Cogmind - Beta 16 @@@ ROGUE MODE // 2025.11.18 @ 22:23:19 Player: tthaar Result: Destroyed by 9C-M7L(R) with Subdweller Machine Gun Performance ------------- Evolutions (0) 0 Regions Visited (2) 400 Robots Destroyed (10) 50 Value Destroyed (201) 201 Prototype IDs (0) 0 Alien Tech Used (0) 0 Bonus (0) 0 TOTAL SCORE: 651 Bonus ------- None Cogmind --------- Core Integrity 0/250 Matter 268/300 Energy 172/250 System Corruption 0% Temperature Cool (0) Movement Rolling (110) Location -10/Subcaves Parts ------- > --- POWER (1) -------- Ion Engine > --- PROPULSION (2) --- Subdweller Monowheel > --- UTILITY (2) ------ Improved Terrain Scanner > --- WEAPON (2) ------- Subdweller Machine Gun > --- INVENTORY (5) ---- Aluminum Leg Aluminum Leg Mining Laser Peak State ------------ > --- POWER ------------ Subdweller Power Source > --- PROPULSION ------- Wheel Subdweller Monowheel > --- UTILITY ---------- Improved Terrain Scanner Seismic Detector > --- WEAPON ----------- Subdweller Laser Subdweller Beam Cannon > --- INVENTORY -------- Ion Engine Aluminum Leg Aluminum Leg Medium Laser Mining Laser [Rating: 13] Favorites ----------- Power Ion Engine Engine Ion Engine Propulsion Wheel Wheel Wheel Utility Improved Terrain Scanner Device Improved Terrain Scanner Storage Small Storage Unit Weapon Light Assault Rifle Energy Gun Subdweller Laser Energy Cannon Subdweller Beam Cannon Ballistic Gun Light Assault Rifle Launcher Subdweller Shrapnel Launcher Special Weapon Mining Laser Build | -11 -10 -10 ------- Run | Yrd Mat Sub Slots Evolved . | . . . Power . | . . . Propulsion . | . . . Utility . | . . . Weapon . | . . . Parts Attached 17 | 8 2 7 Power 3 | 1 . 2 Engine 3 | 1 . 2 Core . | . . . Reactor . | . . . Propulsion 3 | 2 . 1 Treads . | . . . Leg . | . . . Wheel 3 | 2 . 1 Hover . | . . . Flight . | . . . Utility 3 | 2 1 . Device 2 | 1 1 . Storage 1 | 1 . . Processor . | . . . Hackware . | . . . Protection . | . . . Artifact . | . . . Weapon 8 | 3 1 4 Energy Gun 3 | 2 . 1 Energy Cannon 1 | . . 1 Ballistic Gun 2 | 1 . 1 Ballistic Cannon . | . . . Launcher 1 | . . 1 Special Weapon 1 | . 1 . Impact Weapon . | . . . Slashing Weapon . | . . . Piercing Weapon . | . . . Special Melee Weapon . | . . . Unidentified Prototypes . | . . . Parts Lost 5 | . . 5 Power . | . . . Propulsion 2 | . . 2 Utility 1 | . . 1 Weapon 2 | . . 2 Highest Loss Streak 4 | . . 4 To Critical Strikes . | . . . Average Backups 4 | 4 5 4 Power . | . 1 . Propulsion 1 | 1 2 2 Utility . | . . . Weapon 1 | 1 2 2 Tool/Special . | . . . Unused Backups 3 | . 1 2 Power . | . . . Propulsion 2 | . . 2 Utility . | . . . Weapon 1 | . 1 . Tool/Special . | . . . Average Slot Usage (%) 99 | . 100 98 Engine 14 | . 14 14 Wheel 27 | . 28 27 Device 25 | . 23 27 Storage 1 | . 4 . Energy Gun 5 | . 2 8 Energy Cannon 6 | . . 11 Ballistic Gun 7 | . 14 2 Special Weapon 7 | . 11 5 Peak Build Rating 13 | 9 9 13 Average Rating 9 | 5 8 11 On Entrance 6 | . 9 9 Avg Prop Armor Cover (%) . | . . . Naked Turns . | . . . Heaviest Build 19 | 14 14 19 Greatest Support 30 | 26 26 30 Greatest Overweight (x) 1 | . . 1 Average Overweight (x) . | . . . Largest Inventory Capacity 8 | 8 8 5 Average Capacity 5 | 7 5 5 Most Carried 6 | 6 5 5 Average Carried 4 | 4 5 4 Final Capacity 8 | 8 5 5 Final Carried 6 | 6 5 3 Class Distribution -------------------- 80% | Mutant 19% | Scavenger-Mutant Dominant Class ---------------- Mutant | -10/Materials Mutant | -10/Subcaves Resources | -11 -10 -10 ----------- Run | Yrd Mat Sub Matter Collected 356 | 224 . 132 Remotely . | . . . Salvage Created 384 | 200 . 184 Parts 28 | 12 . 16 Haulers Intercepted . | . . . Recyclers Shooed 1 | 1 . . Parts Field Recycled . | . . . Retrieved Matter . | . . . Parts Self-Destructed 9 | . . 9 Prevented . | . . . Parts Restored . | . . . Kills | -11 -10 -10 ------- Run | Yrd Mat Sub Combat Hostiles Destroyed 4 | . . 4 Cannons 4 | . . 4 Classes Destroyed 3 | 2 . 1 Tunneler 5 | 5 . . Recycler 1 | 1 . . Subdweller 4 | . . 4 Best Kill Streak 4 | 4 . 2 Combat Bots Only 2 | . . 2 Max Kills in Single Turn 1 | 1 . 1 Gunslinging . | . . . Exploded . | . . . Melee . | . . . Uniques/NPCs Destroyed . | . . . Combat | -11 -10 -10 -------- Run | Yrd Mat Sub Hostile Shots Fired 32 | . 4 28 Missed 8 | . 3 5 Hits 24 | . 1 23 Projectile 24 | . 1 23 AOE 2 | . . 2 Critical Strikes 1 | . . 1 Damage Taken 633 | . 14 619 Core 259 | . . 259 Absorbed by Shields . | . . . Core Remaining (%) 100 | 100 . . Volleys Fired 94 | 20 15 59 Largest 2 | 2 1 2 Hottest 140 | 70 100 140 Shots Fired 132 | 40 15 77 Gun 58 | 40 . 18 Cannon 52 | . . 52 Launcher 1 | . . 1 Special 21 | . 15 6 Kinetic 22 | 20 . 2 Thermal 110 | 20 15 75 Explosive . | . . . Electromagnetic . | . . . Robot Hit Streak 14 | 9 . 14 Robot Miss Streak 4 | 4 . . Penetration Max . | . . . Secondary Targets . | . . . Shots Hit Robots 32 | 21 . 11 Core Hits 14 | 7 1 6 Critical Kills . | . . . Critical Parts Destroyed . | . . . Critical Strikes 3 | 3 . . Burn 3 | 3 . . Melee Attacks . | . . . Impact . | . . . Slashing . | . . . Piercing . | . . . Sneak Attacks . | . . . Combat Hostiles . | . . . Follow-up Attacks . | . . . Damage Inflicted 691 | 265 9 417 Guns 302 | 265 . 37 Cannons 252 | . . 252 Explosions 128 | . . 128 Melee . | . . . Ramming 9 | . 9 . Kinetic 235 | 91 . 144 Thermal 447 | 174 . 273 Explosive . | . . . Electromagnetic . | . . . Impact . | . . . Slashing . | . . . Piercing . | . . . Highest Corruption . | . . . Average Corruption . | . . . Corruption Purged . | . . . Corruption Blocked . | . . . Overload Shots . | . . . Overflow Damage . | . . . Projectiles . | . . . Explosions . | . . . Melee . | . . . Knockbacks . | . . . Impact . | . . . Kinetic . | . . . Secondary . | . . . Self-Inflicted Damage 59 | . 3 56 Shots 1 | . . 1 Rammed 3 | . 3 . Targets Rammed 3 | . 3 . Kicked . | . . . Crushed . | . . . Highest Temperature 180 | 90 120 180 Average Temperature 42 | 34 34 53 Received Heat Transfer 120 | . 6 114 Siege Activations . | . . . Martial Activations . | . . . Shielding Activations . | . . . Robots Disrupted . | . . . Combat Hostiles . | . . . Robots Corrupted . | . . . Combat Hostiles . | . . . Parts Fried . | . . . Impact Corruptions . | . . . Robots Melted . | . . . Combat Hostiles . | . . . Parts Melted 5 | 5 . . Heat Transferred 1098 | 740 . 358 Parts Sabotaged . | . . . Parts Stolen . | . . . Parts Stripped . | . . . Power Chain Reactions . | . . . Alert | -11 -10 -10 ------- Run | Yrd Mat Sub Maximum Alert Level . | . . . Low Security (%) 100 | 100 100 . Level 1 . | . . . Level 2 . | . . . Level 3 . | . . . Level 4 . | . . . Level 5 . | . . . High Security . | . . . Max Security . | . . . Peak Influence 35 | 10 35 . Initial . | . . . Average 3 | 2 4 . Influence Increases 93 | 30 63 . Destroy 0b10 Robot/NC 30 | 30 . . Successful Hack 7 | . 7 . Destroy Structure 11 | . 11 . Lose Combat Pursuer 45 | . 45 . Influence Decreases 93 | 30 63 . Time Decay 93 | 30 63 . Squads Dispatched 1 | . 1 . Investigation . | . . . Extermination . | . . . Reinforcement 1 | . 1 . Assault . | . . . Garrison . | . . . Intercept . | . . . Searches Triggered . | . . . Construction Impeded . | . . . Haulers Reinforced . | . . . Active Scanning Responses . | . . . Cargo Convoy Interrupts . | . . . Stealth | -11 -10 -10 --------- Run | Yrd Mat Sub Distress Signals 1 | . 1 . Communications Jammed . | . . . Distress Signals . | . . . Times Spotted 15 | . 7 8 Peak Tracking Total 4 | . 4 4 Tactical Retreats 2 | . 2 . Traps | -11 -10 -10 ------- Run | Yrd Mat Sub Traps Triggered . | . . . Indirectly . | . . . Trap Hack Attempts . | . . . Triggered . | . . . Disarmed . | . . . Reprogrammed . | . . . Reused . | . . . Traps Extracted . | . . . Installed . | . . . Triggered . | . . . Machines | -11 -10 -10 ---------- Run | Yrd Mat Sub Machines Disabled . | . . . Max in Single Turn . | . . . Machines Repaired . | . . . Machines Dismantled . | . . . Machines Sabotaged . | . . . Overloaded Fab Kills . | . . . Hacking | -11 -10 -10 --------- Run | Yrd Mat Sub Machines Accessed 2 | . 2 . Terminals 2 | . 2 . Fabricators . | . . . Repair Stations . | . . . Recycling Units . | . . . Scanalyzers . | . . . Garrison Access . | . . . Total Hacks 6 | . 6 . Successful 3 | . 3 . Failed 3 | . 3 . Catastrophic 1 | . 1 . Database Lockouts . | . . . Manual . | . . . Terminals 6 | . 6 . Fabricators . | . . . Repair Stations . | . . . Recycling Units . | . . . Scanalyzers . | . . . Garrison Access . | . . . Terminal Hacks 3 | . 3 . Reinforcement Status 1 | . 1 . Assault Status 1 | . 1 . Recall Reinforcements 1 | . 1 . Fabricator Hacks . | . . . Repair Station Hacks . | . . . Recycling Unit Hacks . | . . . Scanalyzer . | . . . Garrison Access Hacks . | . . . Unauthorized Hacks . | . . . Terminals . | . . . Fabricators . | . . . Repair Stations . | . . . Recycling Units . | . . . Scanalyzers . | . . . Garrison Access . | . . . Data Cores Recovered . | . . . Used . | . . . Hacking Detections 1 | . 1 . Full Trace Events 1 | . 1 . Feedback Events . | . . . Feedback Blocked . | . . . Robot Schematics Acquired . | . . . Robots Built . | . . . Authchips . | . . . Time . | . . . Total Robot Build Rating . | . . . Part Schematics Acquired . | . . . Parts Built . | . . . Authchips . | . . . Time . | . . . Total Part Build Rating . | . . . Part Studies Acquired . | . . . Parts Repaired . | . . . Time . | . . . Parts Recycled . | . . . Recycled Matter . | . . . Retrieved Matter . | . . . Retrieved Components . | . . . Parts Scanalyzed . | . . . Part Schematics Acquired . | . . . Parts Damaged . | . . . Bothacking | -11 -10 -10 ------------ Run | Yrd Mat Sub Used RIF Installer . | . . . Robots Hacked . | . . . Non-combat . | . . . Combat . | . . . Robot Hacks Applied . | . . . Relay Couplers Released . | . . . Fabnet Peak Effective % . | . . . Robots Rewired . | . . . Allies Hacked . | . . . Hacks Repelled . | . . . Allies | -11 -10 -10 -------- Run | Yrd Mat Sub Total Allies . | . . . Largest Group . | . . . Highest-Rated Group . | . . . Highest-Rated Ally . | . . . Total Orders . | . . . Ally Attacks . | . . . Total Damage . | . . . Kills . | . . . Allies Corrupted . | . . . Allies Melted . | . . . Intel | -11 -10 -10 ------- Run | Yrd Mat Sub Active Infowar (turns) 846 | 3 323 520 Terrain 846 | 3 323 520 Seismic 738 | . 229 509 Robot Analysis Total . | . . . Derelict Logs Recovered . | . . . Drone Launches . | . . . Drone Recoveries . | . . . Exploration | -11 -10 -10 ------------- Run | Yrd Mat Sub Turns Passed 1029 | 186 323 520 Spaces Moved 716 | 120 250 346 Core 2 | 2 . . Treads . | . . . Legs . | . . . Wheels 714 | 118 250 346 Hover . | . . . Flight . | . . . Fastest Speed 50 | 50 90 90 Average Speed 91 | 89 90 94 Slowest Speed 110 | 90 90 110 Overloaded Moves . | . . . Propulsion Burnouts . | . . . Robots Hopped . | . . . Potential Cave-ins . | . . . Cave-ins Triggered . | . . . Exploration Rate (%) 20 | 5 36 19 Regions Visited 2 Branch Regions 1 Pre-discovered Areas . | . . . Known Exits Taken . | . . . Unknown Exits Taken 2 | 1 1 . Scrap Searched . | . . . Spaces Dug 29 | . 15 14 Terrain Destroyed 61 | . 15 46 Melee . | . . . Projectile 44 | . 15 29 AOE 17 | . . 17 Terrain Rammed . | . . . Walls Destroyed . | . . . Machines Disabled . | . . . Actions | -11 -10 -10 --------- Run | Yrd Mat Sub Total 912 | 158 302 452 Wait 68 | 5 31 32 Move 714 | 119 249 346 Hop . | . . . Pick Up 8 | 6 . 2 Fast Attach 11 | 7 1 3 Attach 2 | . . 2 Detach . | . . . Swap 4 | 1 1 2 Drop 8 | . 2 6 Fire 94 | 20 15 59 Melee . | . . . Ram 3 | . 3 . Kick . | . . . Crush . | . . . Escape Stasis . | . . . Rewire . | . . . Trap . | . . . Miscellaneous . | . . . Route ------- -11/Scrapyard -10/Materials (discovered 2 exits: [*Mat] / [*Sub]) -10/Subcaves History --------- Turn | Location | Event 14 | -11/Scrapyard | Discovered new exit (range 16) 187 | -11/Scrapyard | Entered Materials 302 | -10/Materials | Build established: Mutant 398 | -10/Materials | Discovered new exit (range 15) 438 | -10/Materials | Discovered new exit (range 10) 510 | -10/Materials | Entered Subcaves 511 | -10/Subcaves | Shifting Twisted Machinery released Sub. Beam Cannon 511 | -10/Subcaves | Approached by a straggling Scientist 616 | -10/Subcaves | Ambushed by Subdweller buried in earth 666 | -10/Subcaves | Shifting Twisted Machinery released Mak. Hammer 866 | -10/Subcaves | A swath of the cavern ceiling suddenly collapsed 1010 | -10/Subcaves | Ambushed by Subdweller buried in earth 1016 | -10/Subcaves | Ambushed by Subdweller buried in earth 1016 | -10/Subcaves | Ambushed by Subdweller buried in earth 1016 | -10/Subcaves | Ambushed by Subdweller buried in earth 1025 | -10/Subcaves | Core integrity fell below 50% 1025 | -10/Subcaves | Ambushed by Subdweller buried in earth 1029 | -10/Subcaves | Core integrity fell below 20% 1030 | -10/Subcaves | Destroyed by 9C-M7L(R) with Subdweller Machine Gun Last Messages --------------- 01014_ Wheel destroyed. 01016_ M5-NGO(R) destroyed. 01017_ O0-A19(R): "ARGHSUB!" 01017_ EB-UZW(R): "ARGHSUB!" 01017_ IG-832(R): "ARGHSUB!" 01019_ The unstable cave ceiling collapses. 01019_ 11 Matter crushed. 01019_ Seismic Detector destroyed. V7-UTH(c): "I think it's somewhere east of here" 01022_ IG-832(R) affixes Scrap Shield Fragment to Scrap Shield. 01023_ Dropped Broken Sub. Laser. 01023_ Acquired Sub. Shrapnel Launcher. 01025_ Sub. Beam Cannon destroyed. 01026_ 9C-M7L(R): "NAT20!" 01026_ Sub. Shrapnel Launcher destroyed. 01028_ IG-832(R) affixes Scrap Shield Fragment to Scrap Shield. 01029_ The unstable cave ceiling collapses. 01029_ Broken Sub. Laser crushed. Map ----- +----------------------------------------------------+ | ?????????????????????????????????????????????????? | | ?????????????????????????????????????????????????? | | ?????????????????????????????????????????????????? | | ?????????????????????????????????????????????????? | | ?????????????????????????????????????????????????? | | ?????????????????????????????????????????????????? | | ?????????????????????????????????????????????????? | | ?????????????????????????????????????????????????? | | ?????????????????????????????????????????????????? | | ?????????????????????????????????????????????????? | | ?????????????????????????????????????????????????? | | ?????????????????????????????????????????????????? | | ?????????????????????????????????????????????????? | | ?????????????????????????????????????????????????? | | ????????????????????#????????????????????????????? | | ?????????????????????????#???????????????????????? | | ????????????????????????????????#????????????????? | | ????????????????????#?????#??#???????????????????? | | ????????????????????????????#????????###?????????? | | ????????????????????#??##??#?????????# #??#??????? | | ????????????#??? ??????# ?????#?#???# #??????????? | | ????????????????????#### ####??????# #???????????? | | ????????????????????# ##???## #??#?????????? | | ???????????????????## ! #?#?# #??#??????????? | | ????????????????#???# RR #?## #????#???#?????? | | ??????????????##???## #@ #?## #??????#??#?#???? | | ??????????????#????## ## ###????##????????? | | ??????????? ???????# R #"##????????????????? | | ???????????????????# R ##???????#????????? | | ???????????????????# ##??#????????????? | | ????????????####???### ## #####?#??????? | | ???????????## #????# ;;;;; # ; #????????? | | ????????????? ##??## ##;#; ## ######?????#?? | | ????????????? #?#?#######;#;##?####???????#??? | | ??????##??????? ##?##"####"#"##????????????????? | | ?????## #???? ?? "#####""#""###?##?#????????????? | | ?????# ##?????# #"##""#"####????????#??????????? | | ?????# ###?## #"#""""## #?#??#?#?????????????? | | ##???# ### ##""#### ##??????????#????????? | | ??????# ## #"### " #????????????#??????? | | ???????# ## ##""### #??????????????????? | | ????###?# ## ###??"???????????????????????? | | ????# #### ###??#????????????????????????? | | ????# [ "=" #?#???????????????????????????? | | ???## &%=&! #?????????????????????????????? | | ???# &&%&] ###?????? ????#?????????????????? | | ???## &&! #?????????#??#????##????????????? | | ???## """ #??#?????????????#??????????????? | | ????## #" "" #######?????????????????????????? | | ???### ###### #?????????????????????????? | +----------------------------------------------------+ Best States ------------- Heat Dissipation 25 Energy Generation 15 Energy Capacity 250 Matter Stores 300 Matter Capacity 300 Sight Range 16 Terrain Scan Range 16 Terrain Scan Density 10 Evasion (%) 42 Item Schematics ----------------- None Robot Schematics ------------------ None Fabricated ------------ Nothing Repaired ---------- Nothing Studied --------- None Alien Tech Used ----------------- None Achievements -------------- None Challenges ------------ None Game ------ Seed ExoskeletonVariableCapacitor Manual? 0 Play Time 00:16:18 Cumulative 21.1 hours Start 2025.11.18 @ 22:07:29 End 2025.11.18 @ 22:23:19 Sessions 1 Manual Loads 0 Difficulty Rogue Special Mode None Game No. 23 Rogue 23 Adventurer 0 Explorer 0 Win Type - Total 0 Types 0/0/0/0/0/0/0/0/0/0 Lore% 11 Gallery% 15 Achievement% 14 Wizard Run 0 Options --------- Layout 1 ASCII 0 Keyboard 0 Movement Mouse Keybinds 0 Fullscreen 2 Font 48/Smallcaps Map View 50x35 Zoom Use 0% Tactical HUD 1 Map Filters NONE Filters NONE Steam 1 RUN: e3c9eeaf-4eb5-4596-8d2d-cfa5f2730a94